bitfinex/quotes_ETHUSD_20240816
["timestamp","ask_amount","ask_price","bid_price","bid_amount"]
[1723782532852,2.4938,2590.8,2590.4,2.31616]
[1723782533152,0.20949735,2590.7,2590.5,35.0]
[1723782533368,0.24436133,2590.7,2590.5,37.31613]
[1723782533536,0.03486398,2590.7,2590.6,6.99272]
[1723782533924,2.4938,2591.2,2590.7,2.31593]
[1723782534119,0.24435467,2591.1,2590.7,2.31593]
[1723782534456,2.4438,2590.9,2590.7,2.31593]
[1723782534824,0.24435467,2590.8,2590.7,2.31593]
[1723782536158,0.24435467,2590.8,2590.6,2.31606]
[1723782536360,0.20949069,2590.7,2590.6,2.31606]
[1723782536727,2.50759069,2590.7,2590.6,2.31606]
[1723782536926,2.54245467,2590.7,2590.6,2.31606]
[1723782537524,2.54245467,2590.7,2590.5,37.31613]
[1723782537727,0.20949069,2590.6,2590.5,37.31613]
[1723782538251,0.20951777,2590.6,2590.5,37.31613]
[1723782538454,0.20952269,2590.6,2590.5,37.31613]
[1723782538928,2.4982,2590.9,2590.5,37.31613]
[1723782539129,0.24438622,2590.8,2590.6,2.31604]
[1723782539462,0.20952224,2590.7,2590.6,2.31604]
[1723782540229,0.20952224,2590.7,2590.6,4.6321]
[1723782540839,2.4905,2591.2,2590.7,2.31592]
[1723782541033,0.6345061,2591.1,2590.7,2.31592]
[1723782541264,0.20949533,2591.0,2590.7,2.31592]
[1723782541461,0.20949533,2590.9,2590.7,2.31592]
[1723782541764,0.20949533,2590.8,2590.7,2.31592]
[1723782543752,0.20949533,2590.8,2590.7,4.63189]
[1723782545335,0.20949533,2590.8,2590.7,39.63189]
[1723782546164,2.4905,2591.2,2590.8,2.31579]
[1723782546366,0.63450212,2591.1,2590.8,2.31579]
[1723782546668,0.63450608,2591.0,2590.8,2.31579]
[1723782546865,0.20949532,2590.9,2590.8,2.31579]
[1723782548149,0.63450365,2590.9,2590.8,2.31579]
[1723782549785,0.63450966,2590.9,2590.8,2.31579]
[1723782550450,0.63450966,2590.9,2590.8,37.31579]
[1723782551758,0.63450966,2590.9,2590.8,35.0]
[1723782553279,2.2617,2590.8,2590.5,2.31614]
[1723782553442,0.63450966,2590.7,2590.5,2.31614]
[1723782553641,0.20950133,2590.6,2590.5,37.31614]
[1723782553843,0.63455378,2590.6,2590.5,35.0]
[1723782554450,2.2617,2590.8,2590.5,35.0]
[1723782554650,0.42506539,2590.6,2590.5,35.0]
[1723782554903,0.63461534,2590.6,2590.5,35.0]
[1723782557016,0.20954995,2590.6,2590.5,35.0]
[1723782557167,0.63460744,2590.6,2590.5,35.0]
[1723782558130,0.63460587,2590.6,2590.5,35.0]
[1723782558659,0.20954978,2590.6,2590.5,35.0]
[1723782559053,2.2617,2590.8,2590.5,35.0]
[1723782559287,0.63461508,2590.7,2590.5,35.0]
[1723782559497,0.63461508,2590.6,2590.5,35.0]
[1723782560986,0.20954982,2590.6,2590.5,35.0]
[1723782561188,0.63461575,2590.6,2590.5,35.0]
[1723782561906,0.20954982,2590.6,2590.5,39.6323]
[1723782563003,2.3373,2591.1,2590.7,2.31594]
[1723782563308,2.3373,2591.1,2590.8,2.31584]
[1723782563309,0.63454372,2591.0,2590.8,2.31584]
[1723782563497,0.63454372,2590.9,2590.8,2.31584]
[1723782563694,0.63454372,2590.9,2590.8,37.31584]
[1723782565413,0.63454372,2590.9,2590.8,35.0]
[1723782567005,2.3863,2591.0,2590.8,35.0]
[1723782567203,0.63451538,2590.9,2590.8,35.0]
[1723782570310,0.63451538,2590.9,2590.8,37.31588]
[1723782570475,0.63451538,2590.9,2590.8,35.0]
[1723782571479,3.6723,2590.9,2590.8,35.0]
[1723782571676,4.9056609,2590.9,2590.8,35.0]
[1723782571899,4.9056609,2590.9,2590.3,3.12018916]
[1723782571900,4.90565768,2590.9,2590.3,3.12013916]
[1723782572095,0.63456568,2590.8,2590.4,3.354857]
[1723782572295,0.63456568,2590.7,2590.5,36.3419428]
[1723782572594,0.63457096,2590.6,2590.5,35.0]
[1723782572793,0.63457096,2590.6,2590.5,36.34193112]
[1723782573009,0.63457096,2590.6,2590.5,36.34195679]
[1723782573207,0.63457096,2590.6,2590.5,36.34193845]
[1723782573407,0.63457096,2590.6,2590.5,38.65808845]
[1723782574284,0.63457096,2590.6,2590.5,37.31615]
[1723782574735,0.20952351,2590.6,2590.5,43.09929535]
[1723782575087,0.20952351,2590.6,2590.5,38.65812814]
[1723782575282,7.40320682,2591.0,2590.5,40.67101869]
[1723782575508,0.63456984,2590.9,2590.5,37.31615]
[1723782575723,0.63456984,2590.8,2590.5,37.31615]
[1723782575885,0.63456984,2590.7,2590.5,37.31615]
[1723782576222,0.63456984,2590.6,2590.5,37.31615]
[1723782576405,0.63456984,2590.6,2590.5,38.65809376]
[1723782576606,0.63456984,2590.6,2590.5,40.67103955]
[1723782578699,0.63456984,2590.6,2590.5,42.98718955]
[1723782578897,7.40320682,2591.0,2590.8,2.31585]
[1723782579122,0.63448078,2590.9,2590.8,2.31585]
[1723782579326,7.40320682,2591.0,2590.8,2.31585]
[1723782579503,0.63449999,2590.9,2590.8,2.31585]
[1723782579988,0.63449999,2590.9,2590.8,37.31585]
[1723782583137,0.63449999,2590.9,2590.8,2.31585]
[1723782583286,3.93312415,2591.3,2590.8,2.31585]
[1723782583492,5.69266847,2591.2,2590.8,2.31585]
[1723782583701,0.63451369,2591.1,2590.9,35.0]
[1723782583909,0.63451369,2591.0,2590.9,35.0]
[1723782584115,2.95691369,2591.0,2590.9,35.0]
[1723782584723,3.75842104,2591.0,2590.9,35.0]
[1723782585566,3.75842104,2591.0,2590.7,2.31596]
[1723782585748,0.6345375,2590.9,2590.5,2.4528]
[1723782585956,0.6345375,2590.8,2590.7,2.31597]
[1723782586637,0.6345375,2590.8,2590.7,3.65780266]
[1723782587547,0.209494,2590.8,2590.7,2.31597]
[1723782587751,0.63450345,2590.8,2590.7,2.31597]
[1723782587948,0.63450345,2590.8,2590.7,3.65779087]
[1723782589323,0.63450345,2590.8,2590.7,5.67047115]
[1723782589523,0.63450345,2590.8,2590.7,40.67048684]
[1723782590967,0.63450345,2590.8,2590.7,38.65779087]
[1723782591336,0.63450345,2590.8,2590.7,35.0]
[1723782591536,3.93802415,2591.2,2590.7,35.0]
[1723782591740,0.03387218,2590.8,2590.7,35.0]
[1723782591954,0.63456254,2590.8,2590.7,35.0]
[1723782592159,0.66843472,2590.8,2590.7,35.0]
[1723782593971,0.66841124,2590.8,2590.7,37.31597]
[1723782594557,0.66841124,2590.8,2590.7,38.65780165]
[1723782594762,0.66841124,2590.8,2590.7,38.65780272]
[1723782595070,0.66841124,2590.8,2590.7,42.98640768]
[1723782595476,0.63453906,2590.8,2590.7,42.98643648]
[1723782595710,0.63453906,2590.8,2590.7,40.97377272]
[1723782595884,0.63451208,2590.8,2590.7,40.97377272]
[1723782596561,0.63451208,2590.8,2590.7,42.98643369]
[1723782596759,0.63447704,2590.8,2590.7,42.98643369]
[1723782597170,0.20948483,2590.8,2590.7,43.79017928]
[1723782597368,0.20948483,2590.8,2590.7,42.98629012]
[1723782597745,0.20948483,2590.8,2590.7,43.79017928]
[1723782598178,0.20948483,2590.8,2590.7,42.98629012]
[1723782600091,2.2958,2591.3,2590.9,2.31573]
[1723782600297,0.6344597,2591.2,2590.9,2.31573]
[1723782600469,0.6344597,2591.1,2590.9,2.31572]
[1723782600659,0.6344597,2591.0,2590.9,2.31572]
[1723782601291,0.6344597,2591.0,2590.9,8.28841]
[1723782601492,7.53017452,2591.4,2590.9,7.01103408]
[1723782601661,7.53017452,2591.4,2591.3,2.31544]
[1723782601855,0.76129293,2591.4,2591.3,2.31544]
[1723782602062,0.33637262,2591.4,2591.3,10.32391704]
[1723782602472,0.33637262,2591.4,2591.3,10.32369352]
[1723782602672,0.33637262,2591.4,2591.3,8.31160158]
[1723782603597,0.33637262,2591.4,2591.3,6.97018]
[1723782603890,0.33637262,2591.4,2591.3,8.31018]
[1723782604056,0.33637262,2591.4,2591.3,9.65154295]
[1723782604255,0.33637262,2591.4,2591.3,44.65154295]
[1723782604451,0.33637262,2591.4,2591.3,43.31018]
[1723782605255,0.33637262,2591.4,2591.3,44.65154346]
[1723782605563,0.33637262,2591.4,2591.3,43.31018]
[1723782605757,0.1269677,2591.4,2591.3,43.31018]
[1723782605961,0.1269677,2591.4,2591.3,44.65150626]
[1723782606184,0.1269677,2591.4,2591.3,43.31018]
[1723782617484,0.1269677,2591.4,2591.3,40.97088]
[1723782620374,2.5845677,2591.4,2591.3,39.63088]
[1723782620671,2.5845677,2591.4,2591.3,35.0]
[1723782620869,3.0524542,2591.4,2591.3,35.0]
[1723782621673,2.79399743,2591.4,2591.3,35.0]
[1723782622011,2.5845677,2591.4,2591.3,35.0]
[1723782622214,2.79398042,2591.4,2591.3,35.0]
[1723782622887,2.5845677,2591.4,2591.3,37.31544]
[1723782623211,0.1269677,2591.4,2591.3,37.31544]
[1723782624588,2.68266758,2591.4,2591.3,35.0]
[1723782624793,3.08493434,2591.4,2591.3,35.0]
[1723782625010,2.68266758,2591.4,2591.3,35.0]
[1723782625515,2.68266758,2591.4,2591.3,37.31544]
[1723782626603,4.02266758,2591.4,2591.3,35.0]
[1723782626991,2.68266758,2591.4,2591.3,35.0]
[1723782627324,3.31646034,2591.4,2591.3,35.0]
[1723782627746,2.68266758,2591.4,2591.3,37.31544]
[1723782627886,0.33636758,2591.4,2591.3,37.31544]
[1723782630787,0.33636758,2591.4,2591.3,35.0]
[1723782631287,2.69426758,2591.4,2591.3,35.0]
[1723782631623,3.09769434,2591.4,2591.3,35.0]
[1723782631813,2.88829446,2591.4,2591.3,35.0]
[1723782631994,3.0977353,2591.4,2591.3,35.0]
[1723782632611,2.3305,2591.3,2590.8,2.31585]
[1723782632787,4.82024045,2591.4,2590.8,2.31585]
[1723782632788,2.3305,2591.1,2590.8,2.31585]
[1723782632993,0.20944084,2591.0,2590.8,2.31585]
[1723782633190,2.3305,2591.1,2590.9,35.0]
[1723782633597,4.6006,2590.9,2590.2,2.31634]
[1723782633807,4.6006,2590.9,2590.4,2.31616]
[1723782633808,0.20949211,2590.8,2590.4,2.31616]
[1723782634145,0.20949211,2590.8,2590.6,2.316]
[1723782634298,0.20949211,2590.8,2590.6,2.31599]
[1723782635111,0.20949211,2590.8,2590.7,35.0]
[1723782636550,2.2848,2590.9,2590.7,35.0]
[1723782636756,0.20950374,2590.8,2590.7,35.0]
[1723782637042,0.20950132,2590.8,2590.7,35.0]
[1723782637391,2.2848,2590.9,2590.7,35.0]
[1723782639036,2.4072,2591.1,2590.7,37.31591]
[1723782639227,0.2094887,2591.0,2590.7,37.31591]
[1723782639528,2.4072,2591.1,2590.8,2.31582]
[1723782639904,0.20947374,2591.0,2590.8,2.31582]
[1723782640104,2.4072,2591.1,2590.9,35.0]
[1723782640317,0.20948051,2591.0,2590.9,35.0]
[1723782640519,2.4072,2591.1,2590.9,35.0]
[1723782640841,0.20947501,2591.0,2590.9,35.0]
[1723782644050,0.41898113,2591.0,2590.9,35.0]
[1723782644244,0.83298924,2591.0,2590.9,35.0]
[1723782644530,0.8330102,2591.0,2590.9,35.0]
[1723782644898,3.51995231,2591.0,2590.9,35.0]
[1723782645298,3.0949102,2591.0,2590.9,35.0]
[1723782645939,4.99160811,2591.0,2590.9,35.0]
[1723782646116,4.99160811,2591.0,2590.2,1.34]
[1723782646117,4.6061,2590.9,2590.3,2.31632]
[1723782646300,0.20952715,2590.8,2590.3,2.31632]
[1723782646503,0.20952715,2590.8,2590.4,35.0]
[1723782647399,0.20952715,2590.8,2590.4,37.31623]
[1723782648027,2.2903,2590.9,2590.6,2.31604]
[1723782648268,0.20951246,2590.8,2590.6,2.31604]
[1723782648450,2.2903,2590.9,2590.6,2.31604]
[1723782648737,0.20951557,2590.8,2590.7,35.0]
[1723782651604,0.20952452,2590.8,2590.7,35.0]
[1723782655602,0.2095248,2590.8,2590.7,35.0]
[1723782656120,0.20952631,2590.8,2590.7,35.0]
[1723782656818,2.2903,2590.9,2590.7,35.0]
[1723782657018,0.20953458,2590.8,2590.7,35.0]
[1723782659824,2.2903,2590.9,2590.7,35.0]
[1723782660047,0.20951769,2590.8,2590.7,35.0]
[1723782661120,0.20951769,2590.8,2590.7,39.63194]
[1723782661319,7.40320682,2591.6,2591.1,2.302]
[1723782661320,6.1162801,2591.6,2591.1,2.302]
[1723782661555,2.4069,2591.6,2591.3,2.31544]
[1723782661764,0.33638915,2591.4,2591.3,2.31544]
[1723782662310,0.33638915,2591.4,2591.3,37.31544]
[1723782663046,0.33638915,2591.4,2591.3,35.0]
[1723782663047,0.33638929,2591.4,2591.3,35.0]
[1723782663253,4.08328929,2591.4,2591.3,35.0]
[1723782663567,5.42143925,2591.4,2591.3,35.0]
[1723782664263,4.50825619,2591.4,2591.3,35.0]
[1723782667067,4.50830452,2591.4,2591.3,35.0]
[1723782667845,6.82365452,2591.4,2591.3,35.0]
[1723782668044,10.53253713,2591.4,2591.3,35.0]
[1723782668248,4.60384,2591.3,2590.7,2.31593]
[1723782668448,1.34,2591.1,2590.7,2.31593]
[1723782668633,1.34,2591.1,2590.8,35.0]
[1723782668634,0.63443682,2591.0,2590.8,35.0]
[1723782668836,0.63443682,2590.9,2590.8,35.0]
[1723782669831,0.20946069,2590.9,2590.8,37.31588]
[1723782671152,3.6284,2591.3,2590.8,37.31588]
[1723782671323,0.63450148,2591.2,2590.8,37.31588]
[1723782671525,1.97450148,2591.1,2590.8,35.0]
[1723782671755,2.2666,2590.9,2590.8,35.0]
[1723782671963,2.90110148,2590.9,2590.8,35.0]
[1723782672456,2.90115318,2590.9,2590.8,35.0]
[1723782672823,4.24115318,2590.9,2590.8,35.0]
[1723782673332,5.26776954,2590.9,2590.8,35.0]
[1723782674635,2.90115318,2590.9,2590.8,35.0]
[1723782675050,0.63455318,2590.9,2590.8,35.0]
[1723782675371,0.63455803,2590.9,2590.8,35.0]
[1723782676867,0.63455803,2590.9,2590.6,2.31606]
[1723782677067,0.63455803,2590.8,2590.6,2.31606]
[1723782677367,0.63455285,2590.7,2590.6,2.31606]
[1723782677574,0.2095213,2590.7,2590.6,2.31606]
[1723782677864,0.63455267,2590.7,2590.6,37.31606]
[1723782678527,0.63455267,2590.7,2590.6,35.0]
[1723782678738,0.83200794,2590.7,2590.6,35.0]
[1723782679747,0.19745527,2590.7,2590.6,35.0]
[1723782679960,0.63463856,2590.7,2590.6,35.0]
[1723782681554,1.97463856,2590.7,2590.6,35.0]
[1723782682029,0.63463856,2590.7,2590.6,35.0]
[1723782683874,0.63881105,2590.7,2590.6,35.0]
[1723782684075,0.63881105,2590.7,2590.6,37.31606]
[1723782687510,1.61562415,2591.3,2591.1,2.31555]
[1723782687780,0.63860652,2591.2,2591.1,2.31555]
[1723782688283,0.63859178,2591.2,2591.1,4.75415]
[1723782688441,0.21364909,2591.2,2591.1,4.75415]
[1723782688646,0.21364909,2591.2,2591.1,2.31555]
[1723782688953,0.63859805,2591.2,2591.1,2.31555]
[1723782689445,0.21364909,2591.2,2591.1,2.31555]
[1723782690346,0.63863386,2591.2,2590.9,2.31573]
[1723782690543,0.21366235,2591.1,2590.9,2.31573]
[1723782690765,0.21366235,2591.0,2590.9,2.31573]
[1723782691252,0.21365773,2591.0,2590.9,2.31573]
[1723782693023,2.6084677,2591.4,2590.9,2.31573]
[1723782693024,0.21367087,2591.3,2590.9,2.31573]
[1723782693311,2.6084677,2591.4,2590.9,2.31573]
[1723782693513,0.63864639,2591.2,2590.9,2.31573]
[1723782693645,0.63864639,2591.1,2590.9,2.31573]
[1723782693846,2.6084677,2591.4,2590.9,2.31573]
[1723782693847,0.21366862,2591.0,2590.9,2.31573]
[1723782694047,0.21366862,2591.3,2590.9,2.31573]
[1723782694279,0.63865163,2591.2,2590.9,2.31573]
[1723782694548,0.63865163,2591.1,2590.9,2.31573]
[1723782694795,0.21366862,2591.0,2590.9,2.31573]
[1723782695196,2.69516862,2591.0,2590.7,2.31597]
[1723782695399,0.21366862,2590.9,2590.7,2.31597]
[1723782695709,0.21366862,2590.8,2590.7,2.31597]
[1723782696002,10.01167452,2591.4,2590.8,2.31581]
[1723782696303,0.63863782,2591.3,2590.8,2.31581]
[1723782696596,0.63864879,2591.2,2590.8,2.31581]
[1723782696879,0.63864879,2591.1,2590.8,2.31581]
[1723782697090,0.21366982,2591.0,2590.8,2.31581]
[1723782697287,0.21367076,2590.9,2590.8,2.31581]
[1723782697488,10.01167452,2591.4,2590.8,2.31581]
[1723782697655,0.63864729,2591.3,2590.8,2.31581]
[1723782697854,10.01167452,2591.4,2590.8,2.31581]
[1723782697855,0.63864729,2591.2,2590.8,2.31581]
[1723782698055,0.21367139,2591.1,2590.8,2.31581]
[1723782698355,0.21367139,2591.0,2590.8,2.31581]
[1723782698666,10.01167452,2591.4,2590.9,2.31578]
[1723782698868,0.63864465,2591.3,2591.2,2.31552]
[1723782699065,0.21366775,2591.3,2591.2,2.31552]
[1723782699589,0.21360084,2591.3,2591.2,2.31552]
[1723782700377,0.63855514,2591.3,2591.0,2.31564]
[1723782700556,0.21360084,2591.2,2591.1,2.3156]
[1723782700756,0.21360084,2591.3,2591.1,2.3156]
[1723782700997,0.21360084,2591.2,2591.1,2.3156]
[1723782701285,0.21360084,2591.2,2591.0,2.31564]
[1723782701587,0.21364923,2591.1,2591.0,2.31564]
[1723782702288,0.1269677,2591.4,2591.1,2.31556]
[1723782702588,0.21363598,2591.3,2591.1,2.31556]
[1723782702794,0.1269677,2591.4,2591.1,2.31556]
[1723782702989,0.21362527,2591.3,2591.1,2.31556]
[1723782705164,0.21362527,2591.3,2591.2,2.31552]
[1723782705662,0.21362527,2591.3,2591.2,37.31552]
[1723782706096,0.1269677,2591.4,2591.2,2.31552]
[1723782706304,2.499,2590.9,2590.4,2.31618]
[1723782706594,2.499,2590.9,2590.5,2.31607]
[1723782706595,0.69508557,2590.8,2590.5,2.31607]
[1723782706781,2.499,2590.9,2590.5,2.31607]
[1723782706782,2.499,2590.9,2590.5,37.31607]
[1723782706971,0.21370844,2590.8,2590.5,37.31607]
[1723782707162,0.21370844,2590.7,2590.5,37.31607]
[1723782707356,2.499,2590.9,2590.5,37.31607]
[1723782707572,0.63878693,2590.8,2590.5,37.31607]
[1723782707758,2.7489,2590.9,2590.5,37.31607]
[1723782707759,0.21373889,2590.7,2590.5,37.31607]
[1723782707959,0.21373889,2590.6,2590.5,35.0]
[1723782708182,0.21373889,2590.8,2590.5,35.0]
[1723782708408,0.21373889,2590.7,2590.5,35.0]
[1723782708664,0.21373889,2590.6,2590.5,35.0]
[1723782709082,0.21373889,2590.8,2590.5,35.0]
[1723782709283,0.63879589,2590.7,2590.5,35.0]
[1723782709594,0.21373889,2590.6,2590.5,35.0]
[1723782709895,0.21373889,2590.8,2590.5,35.0]
[1723782710099,0.63879448,2590.7,2590.5,35.0]
[1723782710262,0.21373889,2590.6,2590.5,35.0]
[1723782710611,0.21373889,2590.8,2590.5,35.0]
[1723782710769,3.839,2590.9,2590.5,35.0]
[1723782710971,0.21374315,2590.7,2590.5,35.0]
[1723782711176,0.21374315,2590.6,2590.5,35.0]
[1723782711695,0.21374315,2590.8,2590.5,35.0]
[1723782711900,0.6387973,2590.7,2590.5,35.0]
[1723782712097,0.21374315,2590.6,2590.5,35.0]
[1723782712299,0.21374315,2590.8,2590.5,35.0]
[1723782712469,0.63880514,2590.7,2590.5,35.0]
[1723782712670,0.21374315,2590.6,2590.5,35.0]
[1723782719395,3.839,2590.9,2590.5,35.0]
[1723782719719,0.63880435,2590.8,2590.5,35.0]
[1723782719919,4.454471,2590.9,2590.5,35.0]
[1723782720223,0.63881234,2590.8,2590.5,35.0]
[1723782720422,2.4717,2590.6,2590.5,35.0]
[1723782720592,6.10322427,2590.6,2590.5,35.0]
[1723782720931,2.4717,2590.4,2589.8,2.31674]
[1723782721205,2.4717,2590.4,2589.6,4.78393]
[1723782721206,1.34,2590.0,2589.6,4.78393]
[1723782721529,3.8117,2589.7,2589.2,2.31731]
[1723782721672,1.34,2589.5,2589.2,2.31731]
[1723782722010,1.34,2589.5,2589.3,35.0]
[1723782724002,2.4717,2589.7,2589.3,35.0]
[1723782724189,0.21396638,2589.6,2589.3,35.0]
[1723782724391,2.4717,2589.7,2589.3,35.0]
[1723782729627,2.3285,2589.5,2589.3,35.0]
[1723782730845,4.64562,2589.5,2589.3,35.0]
[1723782731131,2.3285,2589.5,2589.3,35.0]
[1723782731334,2.3285,2589.5,2588.8,2.31764]
[1723782731844,2.31713,2589.4,2588.8,2.31764]
[1723782731994,3.013389,2589.4,2588.8,2.31764]
[1723782733110,3.013389,2589.4,2588.9,35.0]
[1723782733307,2.3285,2589.3,2588.9,35.0]
[1723782733897,2.31731,2589.2,2588.9,35.0]
[1723782734338,4.64599,2589.0,2588.9,35.0]
[1723782734542,5.34232,2589.0,2588.4,2.31801]
[1723782735065,5.34232,2589.0,2588.5,35.0]
[1723782735268,2.3285,2589.0,2588.5,35.0]
[1723782735769,2.31758,2588.9,2588.5,35.0]
[1723782736266,2.3837,2588.9,2588.5,35.0]
[1723782736463,2.31768,2588.8,2588.5,35.0]
[1723782736768,4.70146,2588.7,2588.5,35.0]
[1723782737072,3.019684,2588.7,2587.9,2.31848]
[1723782737289,2.3837,2588.6,2587.9,2.31848]
[1723782737581,2.31804,2588.4,2587.9,35.0]
[1723782737866,2.31812,2588.3,2587.9,35.0]
[1723782739157,2.3579,2588.2,2587.9,35.0]
[1723782739519,5.143722,2588.2,2587.9,35.0]
[1723782740158,2.3183,2588.1,2587.9,35.0]
[1723782741361,2.31839,2588.0,2587.9,35.0]
[1723782742059,4.57689,2588.0,2587.9,35.0]
[1723782742955,6.89528,2588.0,2587.9,35.0]
[1723782743162,7.6315682,2588.0,2587.9,35.0]
[1723782743524,2.3183,2588.1,2587.9,35.0]
[1723782743864,4.57689,2588.0,2587.9,35.0]
[1723782747064,2.2585,2588.0,2587.9,35.0]
[1723782748379,2.3712,2588.4,2587.9,35.0]
[1723782748532,7.40320682,2588.5,2588.0,2.31833]
[1723782748954,7.40320682,2588.5,2588.1,2.31829]
[1723782749284,7.40320682,2588.5,2587.9,37.402]
[1723782749285,4.68881,2588.9,2588.2,2.31813]
[1723782749458,4.68881,2588.9,2587.9,37.402]
[1723782749459,2.31775,2588.8,2588.0,2.31832]
[1723782749772,2.31786,2588.6,2588.0,2.31832]
[1723782750765,2.31775,2588.8,2588.0,2.31832]
[1723782751334,2.31775,2588.8,2587.9,37.402]
[1723782751335,2.31786,2588.6,2587.9,37.402]
[1723782751538,4.76425,2588.4,2587.9,35.0]
[1723782752747,2.31818,2588.3,2587.9,35.0]
[1723782754080,2.4462,2588.4,2587.9,35.0]
[1723782754437,4.76426,2588.4,2587.9,35.0]
[1723782755280,2.31812,2588.3,2587.9,35.0]
[1723782756235,2.31824,2588.2,2587.9,35.0]
[1723782756437,2.3119,2588.0,2587.9,35.0]
[1723782756665,4.63029,2588.0,2587.9,35.0]
[1723782757137,4.84453284,2588.0,2587.9,35.0]
[1723782757540,7.16292284,2588.0,2587.9,35.0]
[1723782757741,7.87921512,2588.0,2587.9,35.0]
[1723782759086,4.63726,2587.8,2587.1,4.63009]
[1723782759392,0.21424284,2587.7,2587.1,4.63009]
[1723782759588,0.21424284,2587.7,2587.5,35.0]
[1723782761447,2.31862,2587.8,2587.5,35.0]
[1723782761645,7.40320682,2587.9,2587.5,35.0]
[1723782761646,0.21426422,2587.7,2587.5,35.0]
[1723782761844,0.21426422,2587.6,2587.5,35.0]
[1723782762177,11.22854973,2587.9,2587.5,35.0]
[1723782762376,0.21425562,2587.8,2587.5,35.0]
[1723782762580,0.21425562,2587.7,2587.5,35.0]
[1723782762751,7.40320682,2587.9,2587.5,35.0]
[1723782762752,7.40320682,2587.9,2587.7,2.31859]
[1723782762953,2.3758,2588.3,2587.7,2.31859]
[1723782763256,0.2142205,2588.2,2587.5,39.57866]
[1723782763452,4.69398,2588.3,2587.5,41.89743]
[1723782763453,0.2142205,2588.1,2587.5,41.89743]
[1723782763656,0.2142205,2588.0,2587.6,2.31874]
[1723782763870,0.2142205,2587.9,2587.6,2.31874]
[1723782764165,0.2142205,2587.8,2587.7,2.31866]
[1723782764370,2.3758,2588.3,2587.7,2.31866]
[1723782764543,2.3758,2588.3,2587.8,2.31855]
[1723782764544,0.21418396,2588.2,2587.8,2.31855]
[1723782764747,0.21418396,2588.1,2587.8,2.31855]
[1723782764982,0.21418396,2588.0,2587.8,2.31855]
[1723782765289,9.72127682,2588.4,2587.8,2.31855]
[1723782765443,0.21417745,2588.3,2587.8,2.31855]
[1723782765650,0.21417745,2588.2,2587.8,2.31855]
[1723782765874,0.21417745,2588.1,2587.8,2.31855]
[1723782766179,9.72127682,2588.4,2587.8,2.31855]
[1723782766377,0.21418481,2588.3,2587.8,2.31855]
[1723782766544,0.21418481,2588.2,2587.8,2.31855]
[1723782766880,0.21418481,2588.1,2587.9,2.31846]
[1723782767187,0.21418481,2588.0,2587.9,2.31846]
[1723782767778,0.21418481,2588.0,2587.9,35.0]
[1723782771492,0.2142124,2588.0,2587.9,35.0]
[1723782775102,5.0128024,2588.0,2587.9,35.0]
[1723782775341,2.6944124,2588.0,2587.9,35.0]
[1723782775634,4.79859,2588.0,2587.9,35.0]
[1723782775991,5.01284166,2588.0,2587.9,35.0]
[1723782776193,6.11735535,2588.0,2587.9,35.0]
[1723782777191,6.54291691,2588.0,2587.9,35.0]
[1723782777707,3.79896535,2588.0,2587.9,35.0]
[1723782778393,1.31876535,2588.0,2587.5,2.31883]
[1723782778703,1.31876535,2588.0,2587.4,2.31884]
[1723782778704,0.21425166,2587.9,2587.6,37.31868]
[1723782778917,0.21425166,2587.8,2587.6,37.31868]
[1723782779125,0.21425166,2587.7,2587.6,37.31868]
[1723782779328,0.21421049,2587.7,2587.6,37.31868]
[1723782780649,0.21422099,2588.1,2587.6,37.31868]
[1723782780810,0.21421604,2588.0,2587.7,2.3186]
[1723782781014,8.31206762,2588.3,2587.6,39.80578]
[1723782781015,0.21421604,2587.9,2587.6,39.80578]
[1723782781334,0.21421604,2587.8,2587.6,39.80578]
[1723782781532,0.21421604,2587.7,2587.6,37.31868]
[1723782783135,0.21421604,2587.7,2587.6,35.0]
[1723782784146,0.63976935,2587.7,2587.6,35.0]
[1723782785846,2.325,2588.1,2587.6,35.0]
[1723782786044,2.325,2588.1,2587.6,37.31875]
[1723782786045,0.21425456,2587.7,2587.6,37.31875]
[1723782786224,0.21421439,2587.7,2587.6,7.021]
[1723782786419,13.65058314,2588.4,2587.6,7.021]
[1723782786420,13.44221744,2588.4,2587.8,2.31851]
[1723782786622,0.63967024,2588.3,2587.8,2.31851]
[1723782786816,0.63967024,2588.2,2587.9,35.0]
[1723782787141,0.63967024,2588.1,2587.9,35.0]
[1723782787351,15.38064883,2588.4,2587.9,35.0]
[1723782787352,0.21418054,2588.0,2587.9,37.31848]
[1723782787558,0.21418054,2588.0,2587.9,35.0]
[1723782788329,0.63967602,2588.0,2587.9,35.0]
[1723782788664,0.63970691,2588.0,2587.9,35.0]
[1723782790668,0.13970691,2588.0,2587.9,35.0]
[1723782790967,3.71336467,2588.2,2587.9,35.0]
[1723782791974,6.03157467,2588.3,2587.9,35.0]
[1723782792170,3.71336467,2588.2,2587.9,35.0]
[1723782792347,6.03158467,2588.2,2587.9,35.0]
[1723782792549,2.3468,2588.0,2587.9,35.0]
[1723782792748,2.3468,2588.0,2587.4,2.31889]
[1723782792749,8.37855467,2588.0,2587.4,2.31889]
[1723782793064,8.37855467,2588.0,2587.2,6.76100676]
[1723782793065,1.06968647,2587.9,2587.2,6.76100676]
[1723782793252,3.71402952,2587.9,2587.3,35.0]
[1723782793583,3.71402952,2587.9,2587.4,2.31891]
[1723782794142,6.06082952,2588.0,2587.5,35.0]
[1723782794344,6.89040201,2588.0,2587.5,35.0]
[1723782794543,9.20885201,2588.0,2587.5,35.0]
[1723782795578,6.89040201,2588.0,2587.5,35.0]
[1723782795783,6.06082952,2588.0,2587.5,37.31883]
[1723782795939,3.71402952,2588.3,2587.8,2.31856]
[1723782796145,13.46353634,2588.4,2587.8,2.31856]
[1723782796342,13.46353634,2588.4,2587.9,2.322]